[Event "Late-Titled-Tuesday-Blitz-October-17-2023"]
[Site "Chess.com"]
[Date "2023.10.17"]
[Round "8"]
[White "Cristi_Coca"]
[Black "luizzy"]
[Result "0-1"]
[WhiteElo "2376"]
[BlackElo "2572"]
[TimeControl "180+1"]
[EndTime "15:25:36 PDT"]
[Termination "luizzy won on time"]

1. e4 {[%clk 0:03:00.3]} 1... c5 {[%clk 0:02:58.7]} 2. c3 {[%clk 0:03:00.3]}
2... g6 {[%clk 0:02:57.2]} 3. d4 {[%clk 0:03:00]} 3... cxd4 {[%clk 0:02:58.1]}
4. cxd4 {[%clk 0:03:00.9]} 4... Bg7 {[%clk 0:02:59]} 5. Nf3 {[%clk 0:03:00.8]}
5... d5 {[%clk 0:02:58.1]} 6. e5 {[%clk 0:03:01]} 6... a6 {[%clk 0:02:58.4]} 7.
h3 {[%clk 0:02:58.1]} 7... Nc6 {[%clk 0:02:57.1]} 8. Nc3 {[%clk 0:02:55.3]} 8...
f6 {[%clk 0:02:56.6]} 9. Bf4 {[%clk 0:02:53.5]} 9... fxe5 {[%clk 0:02:56.3]} 10.
Nxe5 {[%clk 0:02:49.7]} 10... Nxe5 {[%clk 0:02:54.8]} 11. dxe5 {[%clk
0:02:49.7]} 11... d4 {[%clk 0:02:47.8]} 12. Qa4+ {[%clk 0:02:37.1]} 12... b5
{[%clk 0:02:36.6]} 13. Bxb5+ {[%clk 0:02:35.6]} 13... axb5 {[%clk 0:02:34.2]}
14. Qxa8 {[%clk 0:02:35.9]} 14... dxc3 {[%clk 0:02:34.4]} 15. Rd1 {[%clk
0:02:26.9]} 15... Qc7 {[%clk 0:02:03.3]} 16. e6 {[%clk 0:02:10.9]} 16... Qc4
{[%clk 0:02:02.9]} 17. b3 {[%clk 0:01:55.2]} 17... Qxe6+ {[%clk 0:01:58]} 18.
Be3 {[%clk 0:01:49.5]} 18... Nf6 {[%clk 0:01:46.3]} 19. O-O {[%clk 0:01:44.6]}
19... O-O {[%clk 0:01:45.8]} 20. Rfe1 {[%clk 0:01:43.8]} 20... Qf7 {[%clk
0:01:35.1]} 21. Qc6 {[%clk 0:01:39.4]} 21... b4 {[%clk 0:01:32.1]} 22. Bc5
{[%clk 0:01:37.3]} 22... c2 {[%clk 0:00:32.7]} 23. Rc1 {[%clk 0:01:33.5]} 23...
Bd7 {[%clk 0:00:25.7]} 24. Qf3 {[%clk 0:01:27.1]} 24... Bf5 {[%clk 0:00:23.6]}
25. g4 {[%clk 0:00:44.6]} 25... Rc8 {[%clk 0:00:23.7]} 26. Bxe7 {[%clk
0:00:33.5]} 26... Be4 {[%clk 0:00:20.1]} 27. Rxe4 {[%clk 0:00:20.3]} 27... Nxe4
{[%clk 0:00:21]} 28. Qxe4 {[%clk 0:00:21.1]} 28... Re8 {[%clk 0:00:15.6]} 29.
Qxb4 {[%clk 0:00:16.5]} 29... Qd5 {[%clk 0:00:04.4]} 30. Bg5 {[%clk 0:00:11.6]}
30... Qd1+ {[%clk 0:00:04.2]} 31. Kg2 {[%clk 0:00:11.6]} 31... Qd5+ {[%clk
0:00:03.2]} 32. Kg1 {[%clk 0:00:10.1]} 32... Qd1+ {[%clk 0:00:02.5]} 33. Kg2
{[%clk 0:00:08]} 33... Qd5+ {[%clk 0:00:02.7]} 34. f3 {[%clk 0:00:04.5]} 34...
Qxg5 {[%clk 0:00:03]} 35. Rxc2 {[%clk 0:00:04.1]} 35... h6 {[%clk 0:00:02.9]}
36. Qc4+ {[%clk 0:00:03.4]} 36... Kh7 {[%clk 0:00:02.7]} 37. Re2 {[%clk
0:00:02.9]} 37... Rd8 {[%clk 0:00:02.7]} 38. a4 {[%clk 0:00:01.7]} 38... h5
{[%clk 0:00:02.5]} 0-1

[Event "Late-Titled-Tuesday-Blitz-October-17-2023"]
[Site "Chess.com"]
[Date "2023.10.17"]
[Round "8"]
[White "protectiago"]
[Black "SanchezKelvin"]
[Result "0-1"]
[WhiteElo "2076"]
[BlackElo "2556"]
[TimeControl "180+1"]
[EndTime "15:25:38 PDT"]
[Termination "SanchezKelvin won by checkmate"]

1. d4 {[%clk 0:02:59.5]} 1... Nf6 {[%clk 0:02:55.3]} 2. c4 {[%clk 0:03:00]} 2...
e6 {[%clk 0:02:54.4]} 3. g3 {[%clk 0:02:58.8]} 3... b6 {[%clk 0:02:47.6]} 4. Bg2
{[%clk 0:02:58.7]} 4... c6 {[%clk 0:02:47.4]} 5. Nf3 {[%clk 0:02:58.2]} 5... Bb7
{[%clk 0:02:44.5]} 6. O-O {[%clk 0:02:58]} 6... Be7 {[%clk 0:02:43.2]} 7. Nbd2
{[%clk 0:02:58]} 7... d5 {[%clk 0:02:42.8]} 8. Qc2 {[%clk 0:02:57.4]} 8... O-O
{[%clk 0:02:40.1]} 9. Rd1 {[%clk 0:02:57.8]} 9... Nbd7 {[%clk 0:02:36.4]} 10. e4
{[%clk 0:02:58]} 10... dxe4 {[%clk 0:02:33.1]} 11. Nxe4 {[%clk 0:02:58.3]} 11...
Nxe4 {[%clk 0:02:27.6]} 12. Qxe4 {[%clk 0:02:57.7]} 12... Qc8 {[%clk 0:02:27.9]}
13. Bf4 {[%clk 0:01:38.5]} 13... Re8 {[%clk 0:02:19]} 14. Ne5 {[%clk 0:01:16.3]}
14... Nf6 {[%clk 0:02:16.6]} 15. Qf3 {[%clk 0:01:09.4]} 15... Bd6 {[%clk
0:01:35.6]} 16. Rac1 {[%clk 0:00:34.1]} 16... Rb8 {[%clk 0:01:24.6]} 17. c5
{[%clk 0:00:33.4]} 17... Bxe5 {[%clk 0:01:17.1]} 18. Bxe5 {[%clk 0:00:25.6]}
18... Nd5 {[%clk 0:01:09.6]} 19. Bxb8 {[%clk 0:00:24.9]} 19... Qxb8 {[%clk
0:01:10.1]} 20. a3 {[%clk 0:00:22.8]} 20... b5 {[%clk 0:01:08.2]} 21. Re1 {[%clk
0:00:20.9]} 21... Qc7 {[%clk 0:01:06.5]} 22. Re4 {[%clk 0:00:20.8]} 22... a5
{[%clk 0:01:05.7]} 23. Rce1 {[%clk 0:00:19.4]} 23... Bc8 {[%clk 0:01:04.3]} 24.
h4 {[%clk 0:00:15.8]} 24... Bd7 {[%clk 0:01:03.8]} 25. h5 {[%clk 0:00:14.5]}
25... h6 {[%clk 0:01:03.1]} 26. Bf1 {[%clk 0:00:13.5]} 26... a4 {[%clk
0:01:00.3]} 27. Bd3 {[%clk 0:00:13.5]} 27... Qa5 {[%clk 0:00:55.4]} 28. Re5
{[%clk 0:00:10.1]} 28... Nf6 {[%clk 0:00:50.5]} 29. R5e2 {[%clk 0:00:09.5]}
29... b4 {[%clk 0:00:47.3]} 30. g4 {[%clk 0:00:09.1]} 30... bxa3 {[%clk
0:00:45]} 31. bxa3 {[%clk 0:00:09.3]} 31... Nd5 {[%clk 0:00:42.2]} 32. Qe4
{[%clk 0:00:09]} 32... Nf6 {[%clk 0:00:40.8]} 33. Qf3 {[%clk 0:00:08.7]} 33...
Nd5 {[%clk 0:00:40.8]} 34. g5 {[%clk 0:00:06.8]} 34... hxg5 {[%clk 0:00:40.2]}
35. h6 {[%clk 0:00:06.9]} 35... gxh6 {[%clk 0:00:36.7]} 36. Qh5 {[%clk 0:00:07]}
36... Kg7 {[%clk 0:00:36.1]} 37. Qg4 {[%clk 0:00:04.1]} 37... Nf6 {[%clk
0:00:35]} 38. Qf3 {[%clk 0:00:03.1]} 38... Qc3 {[%clk 0:00:34.8]} 39. Re3 {[%clk
0:00:02.2]} 39... Qxd4 {[%clk 0:00:34.6]} 40. Be4 {[%clk 0:00:01.9]} 40... Qxc5
{[%clk 0:00:33.6]} 41. Qe2 {[%clk 0:00:01.8]} 41... Rb8 {[%clk 0:00:26.3]} 42.
Bb1 {[%clk 0:00:02.1]} 42... Rb3 {[%clk 0:00:25]} 43. Rd3 {[%clk 0:00:01.6]}
43... Rxd3 {[%clk 0:00:24.7]} 44. Qxd3 {[%clk 0:00:01.8]} 44... Qd5 {[%clk
0:00:24.9]} 45. Qa6 {[%clk 0:00:01.6]} 45... c5 {[%clk 0:00:24.7]} 46. Qe2
{[%clk 0:00:01.8]} 46... Bc6 {[%clk 0:00:24.8]} 47. Rd1 {[%clk 0:00:02]} 47...
Qg2# {[%clk 0:00:24.7]} 0-1

[Event "Late-Titled-Tuesday-Blitz-October-17-2023"]
[Site "Chess.com"]
[Date "2023.10.17"]
[Round "8"]
[White "santosalberto1987"]
[Black "johnmez"]
[Result "1-0"]
[WhiteElo "2414"]
[BlackElo "2284"]
[TimeControl "180+1"]
[EndTime "15:25:42 PDT"]
[Termination "santosalberto1987 won by checkmate"]

1. e4 {[%clk 0:02:33.7]} 1... e6 {[%clk 0:02:58.5]} 2. d4 {[%clk 0:02:33.7]}
2... d5 {[%clk 0:02:59.4]} 3. Nc3 {[%clk 0:02:34.1]} 3... Bb4 {[%clk 0:02:57.2]}
4. e5 {[%clk 0:02:34.2]} 4... c5 {[%clk 0:02:57.1]} 5. a3 {[%clk 0:02:34.6]}
5... Bxc3+ {[%clk 0:02:57.2]} 6. bxc3 {[%clk 0:02:35.5]} 6... Nc6 {[%clk
0:02:57.1]} 7. Nf3 {[%clk 0:02:35.6]} 7... Qa5 {[%clk 0:02:54.2]} 8. Qd2 {[%clk
0:02:34.2]} 8... Nge7 {[%clk 0:02:40]} 9. a4 {[%clk 0:02:34.2]} 9... Bd7 {[%clk
0:02:36.2]} 10. Bd3 {[%clk 0:02:32.5]} 10... c4 {[%clk 0:02:35]} 11. Be2 {[%clk
0:02:32.4]} 11... O-O-O {[%clk 0:02:31.9]} 12. O-O {[%clk 0:02:31.1]} 12... f6
{[%clk 0:02:31.1]} 13. Ba3 {[%clk 0:02:27.4]} 13... Ng6 {[%clk 0:02:22.9]} 14.
Bd6 {[%clk 0:02:20.1]} 14... Nce7 {[%clk 0:01:54.5]} 15. Bxe7 {[%clk 0:02:04.5]}
15... Nxe7 {[%clk 0:01:53.2]} 16. Rfb1 {[%clk 0:02:02.7]} 16... Rhf8 {[%clk
0:01:42.4]} 17. Qe3 {[%clk 0:01:55.2]} 17... f5 {[%clk 0:01:38.5]} 18. Qg5
{[%clk 0:01:37.6]} 18... Rf7 {[%clk 0:01:37.2]} 19. Qd2 {[%clk 0:01:35.7]} 19...
h6 {[%clk 0:01:36.4]} 20. h4 {[%clk 0:01:35.1]} 20... Rg8 {[%clk 0:01:33.9]} 21.
h5 {[%clk 0:01:26.1]} 21... f4 {[%clk 0:01:31.6]} 22. Nh4 {[%clk 0:01:23.3]}
22... Be8 {[%clk 0:01:22.9]} 23. Bg4 {[%clk 0:01:22.1]} 23... Qa6 {[%clk
0:01:16.5]} 24. a5 {[%clk 0:01:17.9]} 24... g5 {[%clk 0:01:10.1]} 25. hxg6
{[%clk 0:01:03.1]} 25... Rff8 {[%clk 0:01:05]} 26. Rb2 {[%clk 0:00:50.5]} 26...
Nxg6 {[%clk 0:01:01.8]} 27. Nxg6 {[%clk 0:00:50.1]} 27... Bxg6 {[%clk
0:01:01.7]} 28. Rab1 {[%clk 0:00:47.7]} 28... Rg7 {[%clk 0:01:00.7]} 29. Rb5
{[%clk 0:00:37.8]} 29... Be8 {[%clk 0:00:55.9]} 30. Rc5+ {[%clk 0:00:35.9]}
30... Kb8 {[%clk 0:00:54.7]} 31. f3 {[%clk 0:00:29.2]} 31... h5 {[%clk
0:00:50.1]} 32. Bh3 {[%clk 0:00:29.3]} 32... b6 {[%clk 0:00:45.4]} 33. axb6
{[%clk 0:00:28.8]} 33... axb6 {[%clk 0:00:43.9]} 34. Bxe6 {[%clk 0:00:27.9]}
34... Re7 {[%clk 0:00:27.8]} 35. Bxd5 {[%clk 0:00:27.7]} 35... Ka7 {[%clk
0:00:20.6]} 36. Bxc4 {[%clk 0:00:26.7]} 36... Qa3 {[%clk 0:00:16.7]} 37. Rd5
{[%clk 0:00:24.2]} 37... Bf7 {[%clk 0:00:13.3]} 38. Qd3 {[%clk 0:00:14.6]} 38...
Bxd5 {[%clk 0:00:11.9]} 39. Bxd5 {[%clk 0:00:15.5]} 39... Rc7 {[%clk 0:00:10.4]}
40. Qb5 {[%clk 0:00:12.8]} 40... Qa5 {[%clk 0:00:04.9]} 41. Qxa5+ {[%clk
0:00:10.5]} 41... bxa5 {[%clk 0:00:04.3]} 42. c4 {[%clk 0:00:11.4]} 42... Rb8
{[%clk 0:00:02.8]} 43. Ra1 {[%clk 0:00:10.9]} 43... Kb6 {[%clk 0:00:02]} 44. c5+
{[%clk 0:00:09.9]} 44... Ka7 {[%clk 0:00:01.6]} 45. Rxa5# {[%clk 0:00:09.6]} 1-0

[Event "Late-Titled-Tuesday-Blitz-October-17-2023"]
[Site "Chess.com"]
[Date "2023.10.17"]
[Round "8"]
[White "Elbebiber"]
[Black "sari07"]
[Result "0-1"]
[WhiteElo "2134"]
[BlackElo "2327"]
[TimeControl "180+1"]
[EndTime "15:25:45 PDT"]
[Termination "sari07 won on time"]

1. d4 {[%clk 0:03:00.9]} 1... Nf6 {[%clk 0:01:48.9]} 2. Bg5 {[%clk 0:02:59.5]}
2... Ne4 {[%clk 0:01:43.9]} 3. Bf4 {[%clk 0:02:59.3]} 3... d5 {[%clk 0:01:42.7]}
4. Nd2 {[%clk 0:02:57.3]} 4... Bf5 {[%clk 0:01:40.4]} 5. e3 {[%clk 0:02:54.5]}
5... e6 {[%clk 0:01:37.9]} 6. Ngf3 {[%clk 0:02:53]} 6... Bd6 {[%clk 0:01:35]} 7.
Bxd6 {[%clk 0:02:52.6]} 7... cxd6 {[%clk 0:01:28.4]} 8. Bd3 {[%clk 0:02:42.6]}
8... O-O {[%clk 0:01:27]} 9. O-O {[%clk 0:02:37.6]} 9... Nxd2 {[%clk 0:01:23.8]}
10. Qxd2 {[%clk 0:02:37.3]} 10... Bg4 {[%clk 0:01:20.5]} 11. Be2 {[%clk
0:02:30.7]} 11... Nc6 {[%clk 0:01:20.9]} 12. h3 {[%clk 0:02:29.8]} 12... Bh5
{[%clk 0:01:19.3]} 13. Rfe1 {[%clk 0:02:26.5]} 13... Qe7 {[%clk 0:01:03.2]} 14.
Rac1 {[%clk 0:02:19.9]} 14... Rad8 {[%clk 0:00:37.2]} 15. c4 {[%clk 0:02:17]}
15... dxc4 {[%clk 0:00:37.1]} 16. Rxc4 {[%clk 0:02:16.6]} 16... d5 {[%clk
0:00:35.2]} 17. Rc3 {[%clk 0:02:10.3]} 17... Rd6 {[%clk 0:00:16]} 18. Rec1
{[%clk 0:02:09]} 18... Rfd8 {[%clk 0:00:12.1]} 19. a3 {[%clk 0:02:08.2]} 19...
Bxf3 {[%clk 0:00:11.4]} 20. Bxf3 {[%clk 0:02:07.9]} 20... e5 {[%clk 0:00:12.3]}
21. Rc5 {[%clk 0:01:42.6]} 21... e4 {[%clk 0:00:11.2]} 22. Be2 {[%clk
0:01:39.7]} 22... Rg6 {[%clk 0:00:10.2]} 23. Bf1 {[%clk 0:01:26.2]} 23... Qh4
{[%clk 0:00:09]} 24. Kh2 {[%clk 0:01:23.3]} 24... h5 {[%clk 0:00:08.9]} 25. g3
{[%clk 0:01:08.4]} 25... Qg5 {[%clk 0:00:04.9]} 26. h4 {[%clk 0:01:02.6]} 26...
Qf6 {[%clk 0:00:05]} 27. Bg2 {[%clk 0:00:53.5]} 27... Ne7 {[%clk 0:00:04.8]} 28.
Rf1 {[%clk 0:00:29.7]} 28... Nf5 {[%clk 0:00:05.2]} 29. Qe1 {[%clk 0:00:20.1]}
29... Nxh4 {[%clk 0:00:05.5]} 30. gxh4 {[%clk 0:00:13.3]} 30... Qxh4+ {[%clk
0:00:06.4]} 31. Bh3 {[%clk 0:00:12.5]} 31... Qf6 {[%clk 0:00:04]} 32. f4 {[%clk
0:00:10.4]} 32... exf3 {[%clk 0:00:03.6]} 33. Qf2 {[%clk 0:00:09.8]} 33... Qd6+
{[%clk 0:00:03.2]} 34. Kh1 {[%clk 0:00:09.2]} 34... Rg3 {[%clk 0:00:03.8]} 35.
Bf5 {[%clk 0:00:04.3]} 35... Rg2 {[%clk 0:00:03.7]} 36. Qxg2 {[%clk 0:00:02.1]}
36... fxg2+ {[%clk 0:00:03.1]} 37. Kxg2 {[%clk 0:00:03]} 37... g6 {[%clk
0:00:03.1]} 38. Bh3 {[%clk 0:00:03.9]} 38... Qe7 {[%clk 0:00:02.3]} 39. Rf3
{[%clk 0:00:04.8]} 39... Qg5+ {[%clk 0:00:02.3]} 40. Rg3 {[%clk 0:00:05.4]}
40... Qh4 {[%clk 0:00:02.6]} 41. Kh2 {[%clk 0:00:05]} 41... Re8 {[%clk 0:00:03]}
42. Rxd5 {[%clk 0:00:03.5]} 42... Qe7 {[%clk 0:00:03.4]} 43. Re5 {[%clk
0:00:03.5]} 43... Qc7 {[%clk 0:00:03.9]} 44. Rxe8+ {[%clk 0:00:03.2]} 44... Kg7
{[%clk 0:00:04.7]} 45. Re5 {[%clk 0:00:03.6]} 45... Qc2+ {[%clk 0:00:05.2]} 46.
Rg2 {[%clk 0:00:01.2]} 46... Qd1 {[%clk 0:00:05.4]} 0-1

[Event "Late-Titled-Tuesday-Blitz-October-17-2023"]
[Site "Chess.com"]
[Date "2023.10.17"]
[Round "8"]
[White "Binary010"]
[Black "karinachess1"]
[Result "0-1"]
[WhiteElo "2793"]
[BlackElo "2625"]
[TimeControl "180+1"]
[EndTime "15:25:53 PDT"]
[Termination "karinachess1 won on time"]

1. e4 {[%clk 0:03:00.9]} 1... e5 {[%clk 0:02:59.5]} 2. Nf3 {[%clk 0:03:01.3]}
2... Nc6 {[%clk 0:02:59.6]} 3. d4 {[%clk 0:03:00.5]} 3... exd4 {[%clk
0:02:59.6]} 4. Nxd4 {[%clk 0:03:01.4]} 4... Bc5 {[%clk 0:02:59.8]} 5. Nb3 {[%clk
0:03:01.1]} 5... Bb6 {[%clk 0:02:59.9]} 6. Nc3 {[%clk 0:03:00.4]} 6... Nf6
{[%clk 0:03:00.3]} 7. Bg5 {[%clk 0:03:00.4]} 7... O-O {[%clk 0:03:00.3]} 8. Qe2
{[%clk 0:02:59.8]} 8... Nd4 {[%clk 0:03:00.6]} 9. Qd2 {[%clk 0:02:59.8]} 9...
Nxb3 {[%clk 0:02:59.5]} 10. axb3 {[%clk 0:03:00.7]} 10... h6 {[%clk 0:02:59.1]}
11. Be3 {[%clk 0:03:00.4]} 11... Re8 {[%clk 0:02:57.9]} 12. Bxb6 {[%clk
0:02:50.7]} 12... cxb6 {[%clk 0:02:14.1]} 13. f3 {[%clk 0:02:47.8]} 13... d5
{[%clk 0:02:10.5]} 14. O-O-O {[%clk 0:02:46.5]} 14... Be6 {[%clk 0:02:02.6]} 15.
Bb5 {[%clk 0:02:24.4]} 15... Rf8 {[%clk 0:01:49.3]} 16. exd5 {[%clk 0:02:21.2]}
16... Bf5 {[%clk 0:01:49.7]} 17. Rhe1 {[%clk 0:02:17]} 17... a6 {[%clk
0:01:47.1]} 18. Bd3 {[%clk 0:02:16.3]} 18... Bxd3 {[%clk 0:01:46.3]} 19. Qxd3
{[%clk 0:02:17.2]} 19... Qd6 {[%clk 0:01:45.7]} 20. Ne4 {[%clk 0:02:09.2]} 20...
Nxe4 {[%clk 0:01:45.4]} 21. Qxe4 {[%clk 0:02:09.5]} 21... Qxh2 {[%clk
0:01:41.4]} 22. d6 {[%clk 0:01:52.7]} 22... Qxg2 {[%clk 0:01:26.7]} 23. Rg1
{[%clk 0:01:47]} 23... Qf2 {[%clk 0:01:20.4]} 24. d7 {[%clk 0:01:24.8]} 24...
Rad8 {[%clk 0:01:11.3]} 25. Qe5 {[%clk 0:01:16.6]} 25... g6 {[%clk 0:00:57.1]}
26. Qf6 {[%clk 0:01:13.5]} 26... Rxd7 {[%clk 0:00:53]} 27. Rdf1 {[%clk
0:01:00.3]} 27... Qe3+ {[%clk 0:00:51.7]} 28. Kb1 {[%clk 0:01:00.3]} 28... Rfd8
{[%clk 0:00:48.5]} 29. f4 {[%clk 0:00:57.1]} 29... Rd6 {[%clk 0:00:44.4]} 30.
Qh4 {[%clk 0:00:57.1]} 30... Kg7 {[%clk 0:00:35.8]} 31. f5 {[%clk 0:00:51.2]}
31... g5 {[%clk 0:00:36.2]} 32. Qh5 {[%clk 0:00:39.9]} 32... Rf6 {[%clk
0:00:32.7]} 33. Re1 {[%clk 0:00:31.1]} 33... Qf4 {[%clk 0:00:30.7]} 34. Ref1
{[%clk 0:00:28.5]} 34... Qe3 {[%clk 0:00:30.2]} 35. Re1 {[%clk 0:00:26.1]} 35...
Qf4 {[%clk 0:00:30.5]} 36. Ref1 {[%clk 0:00:13]} 36... Qe5 {[%clk 0:00:18.2]}
37. Qg4 {[%clk 0:00:09.2]} 37... Rd4 {[%clk 0:00:17.7]} 38. Qh3 {[%clk
0:00:09.2]} 38... Rf4 {[%clk 0:00:17.2]} 39. Rxf4 {[%clk 0:00:06.3]} 39... Qxf4
{[%clk 0:00:18.1]} 40. Rf1 {[%clk 0:00:06.8]} 40... Qe5 {[%clk 0:00:18.4]} 41.
Qg4 {[%clk 0:00:06.5]} 41... b5 {[%clk 0:00:18.5]} 42. Ka2 {[%clk 0:00:04.8]}
42... a5 {[%clk 0:00:18.8]} 43. Qh3 {[%clk 0:00:03]} 43... a4 {[%clk 0:00:18.3]}
44. Qg4 {[%clk 0:00:03.2]} 44... axb3+ {[%clk 0:00:18.4]} 45. cxb3 {[%clk
0:00:04]} 45... b6 {[%clk 0:00:15.4]} 46. Kb1 {[%clk 0:00:04]} 46... Rd6 {[%clk
0:00:13.3]} 47. Qf3 {[%clk 0:00:02.4]} 47... Rf6 {[%clk 0:00:12.2]} 48. Qg4
{[%clk 0:00:02.6]} 48... Rd6 {[%clk 0:00:12.4]} 49. Qf3 {[%clk 0:00:03]} 49...
Rd2 {[%clk 0:00:12.4]} 50. f6+ {[%clk 0:00:03.3]} 50... Kg6 {[%clk 0:00:11.1]}
51. Qc3 {[%clk 0:00:01.7]} 51... Qxc3 {[%clk 0:00:10.6]} 52. bxc3 {[%clk
0:00:02.6]} 52... g4 {[%clk 0:00:10.5]} 0-1

[Event "Late-Titled-Tuesday-Blitz-October-17-2023"]
[Site "Chess.com"]
[Date "2023.10.17"]
[Round "8"]
[White "ameetghasi100"]
[Black "Mykola-Bortnyk"]
[Result "1/2-1/2"]
[WhiteElo "2799"]
[BlackElo "2973"]
[TimeControl "180+1"]
[EndTime "15:25:54 PDT"]
[Termination "Game drawn by stalemate"]

1. h3 {[%clk 0:03:00.9]} 1... e5 {[%clk 0:02:48.8]} 2. c4 {[%clk 0:02:59]} 2...
c6 {[%clk 0:02:47.8]} 3. d4 {[%clk 0:02:58.7]} 3... exd4 {[%clk 0:02:47.7]} 4.
Qxd4 {[%clk 0:02:59.1]} 4... d5 {[%clk 0:02:48.3]} 5. Nc3 {[%clk 0:02:56.5]}
5... Nf6 {[%clk 0:02:47.7]} 6. Bg5 {[%clk 0:02:40.7]} 6... Be7 {[%clk
0:02:47.1]} 7. cxd5 {[%clk 0:02:27.8]} 7... cxd5 {[%clk 0:02:46.5]} 8. e3 {[%clk
0:02:25.9]} 8... Nc6 {[%clk 0:02:46.7]} 9. Qa4 {[%clk 0:02:09.3]} 9... Be6
{[%clk 0:02:27.4]} 10. Nf3 {[%clk 0:02:07.4]} 10... h6 {[%clk 0:02:27.5]} 11.
Bh4 {[%clk 0:02:00.6]} 11... a6 {[%clk 0:02:27.2]} 12. Be2 {[%clk 0:01:56.4]}
12... O-O {[%clk 0:02:26.3]} 13. O-O {[%clk 0:01:56.6]} 13... b5 {[%clk
0:02:27.1]} 14. Qd1 {[%clk 0:01:35.1]} 14... g5 {[%clk 0:02:22.9]} 15. Bg3
{[%clk 0:01:35]} 15... Ne4 {[%clk 0:02:22.3]} 16. Bh2 {[%clk 0:01:27.2]} 16...
Bf6 {[%clk 0:02:13]} 17. Nd4 {[%clk 0:01:25.1]} 17... Nxd4 {[%clk 0:02:10.2]}
18. exd4 {[%clk 0:01:26]} 18... Nxc3 {[%clk 0:02:10.9]} 19. bxc3 {[%clk
0:01:26.2]} 19... Rc8 {[%clk 0:02:11.6]} 20. Qd2 {[%clk 0:01:18.1]} 20... Qa5
{[%clk 0:02:10.1]} 21. Bd6 {[%clk 0:01:12.2]} 21... Qxc3 {[%clk 0:02:01.5]} 22.
Qxc3 {[%clk 0:01:11]} 22... Rxc3 {[%clk 0:02:02.4]} 23. Bxf8 {[%clk 0:00:57.1]}
23... Kxf8 {[%clk 0:02:03.3]} 24. a4 {[%clk 0:00:56.8]} 24... b4 {[%clk
0:01:44.2]} 25. Bxa6 {[%clk 0:00:56.2]} 25... Bxd4 {[%clk 0:01:44.7]} 26. Rab1
{[%clk 0:00:40.5]} 26... b3 {[%clk 0:01:39.5]} 27. Rfd1 {[%clk 0:00:31.4]} 27...
Bf5 {[%clk 0:01:38.6]} 28. Rb2 {[%clk 0:00:23.6]} 28... Be5 {[%clk 0:01:03.6]}
29. Rbd2 {[%clk 0:00:23.1]} 29... Bc2 {[%clk 0:00:59.2]} 30. Bd3 {[%clk
0:00:21.7]} 30... Bf4 {[%clk 0:00:44.6]} 31. Bxc2 {[%clk 0:00:17.9]} 31... bxc2
{[%clk 0:00:44.9]} 32. Rxd5 {[%clk 0:00:18.4]} 32... cxd1=Q+ {[%clk 0:00:44.6]}
33. Rxd1 {[%clk 0:00:19.3]} 33... Ra3 {[%clk 0:00:44]} 34. g3 {[%clk 0:00:19.7]}
34... Be5 {[%clk 0:00:44.3]} 35. Rd5 {[%clk 0:00:19.1]} 35... Bc3 {[%clk
0:00:42.5]} 36. Rd3 {[%clk 0:00:19]} 36... Kg7 {[%clk 0:00:41.2]} 37. Kg2 {[%clk
0:00:18.1]} 37... Bb4 {[%clk 0:00:41.2]} 38. Rxa3 {[%clk 0:00:18.2]} 38... Bxa3
{[%clk 0:00:42.1]} 39. a5 {[%clk 0:00:17]} 39... Bc5 {[%clk 0:00:42.8]} 40. f4
{[%clk 0:00:17.4]} 40... f5 {[%clk 0:00:41.5]} 41. Kf3 {[%clk 0:00:16.4]} 41...
Kg6 {[%clk 0:00:38]} 42. g4 {[%clk 0:00:14.2]} 42... fxg4+ {[%clk 0:00:14.6]}
43. Kxg4 {[%clk 0:00:06.6]} 43... h5+ {[%clk 0:00:04.7]} 44. Kf3 {[%clk
0:00:06.6]} 44... Kf5 {[%clk 0:00:02.9]} 45. fxg5 {[%clk 0:00:06.7]} 45... Kxg5
{[%clk 0:00:03.8]} 46. Kg3 {[%clk 0:00:06.4]} 46... Ba7 {[%clk 0:00:04.1]} 47.
a6 {[%clk 0:00:06.5]} 47... Kf5 {[%clk 0:00:05]} 48. Kg2 {[%clk 0:00:05.5]}
48... Kf4 {[%clk 0:00:05.4]} 49. h4 {[%clk 0:00:05.9]} 49... Kg4 {[%clk
0:00:05.6]} 50. Kh2 {[%clk 0:00:06.7]} 50... Kxh4 {[%clk 0:00:05.8]} 51. Kg2
{[%clk 0:00:07.6]} 51... Kg4 {[%clk 0:00:06.4]} 52. Kh1 {[%clk 0:00:08.5]} 52...
h4 {[%clk 0:00:07.3]} 53. Kh2 {[%clk 0:00:09.2]} 53... h3 {[%clk 0:00:07.6]} 54.
Kh1 {[%clk 0:00:10.1]} 54... Kh4 {[%clk 0:00:06.4]} 55. Kh2 {[%clk 0:00:11]}
55... Kg4 {[%clk 0:00:06.8]} 56. Kh1 {[%clk 0:00:11.9]} 56... Kg3 {[%clk
0:00:07.5]} 1/2-1/2